bitfinex/quotes_BTCUSD_20230109
["timestamp","ask_amount","ask_price","bid_price","bid_amount"]
[1673287219300,0.17651188,17363.0,17362.0,0.3062]
[1673287219546,0.45370551,17363.0,17362.0,0.3062]
[1673287220060,0.45370551,17363.0,17362.0,0.7062]
[1673287220831,0.45370551,17363.0,17362.0,0.3062]
[1673287222334,0.45370551,17363.0,17362.0,0.2962]
[1673287223328,0.45370551,17363.0,17362.0,0.6962]
[1673287223598,0.28019363,17363.0,17362.0,0.6962]
[1673287224119,0.28019363,17363.0,17362.0,0.9462]
[1673287224346,0.003,17363.0,17362.0,0.9462]
[1673287226088,0.17566477,17363.0,17362.0,0.5462]
[1673287226815,0.17566477,17363.0,17362.0,0.6462]
[1673287227066,0.4536221,17363.0,17362.0,0.49]
[1673287231593,0.71261897,17363.0,17362.0,0.49]
[1673287231848,1.28855597,17363.0,17362.0,0.49]
[1673287232915,0.71261897,17363.0,17362.0,0.49]
[1673287238165,1.46091212,17363.0,17362.0,0.49]
[1673287238439,2.03684912,17363.0,17362.0,0.49]
[1673287238932,2.21009954,17363.0,17362.0,0.49]
[1673287239198,2.47345017,17363.0,17362.0,0.49]
[1673287240187,2.47345017,17363.0,17362.0,0.35]
[1673287240412,2.47045017,17363.0,17362.0,0.35]
[1673287240673,2.21109954,17363.0,17362.0,0.487]
[1673287241170,2.46856535,17363.0,17362.0,0.487]
[1673287241669,2.46456535,17363.0,17362.0,0.35]
[1673287241945,2.46756535,17363.0,17362.0,0.435]
[1673287242407,2.82970435,17363.0,17362.0,0.435]
[1673287242861,3.40564135,17363.0,17362.0,0.43488298]
[1673287243893,3.04350235,17363.0,17362.0,0.43488298]
[1673287244636,3.40564135,17363.0,17362.0,0.43488298]
[1673287244886,3.04350235,17363.0,17362.0,0.43488298]
[1673287245126,3.40564135,17363.0,17362.0,0.43488298]
[1673287245646,3.06062043,17363.0,17362.0,0.43488298]
[1673287246404,3.05762043,17363.0,17362.0,0.34988298]
[1673287246661,3.05762043,17363.0,17362.0,0.36588298]
[1673287247155,2.69548143,17363.0,17362.0,0.36588298]
[1673287247432,3.04062402,17363.0,17362.0,0.36588298]
[1673287247678,3.40276302,17363.0,17362.0,0.36588298]
[1673287247988,3.04062402,17363.0,17362.0,0.34988298]
[1673287248230,2.78315821,17363.0,17362.0,0.34988298]
[1673287248481,3.45034467,17363.0,17362.0,0.35288298]
[1673287248698,3.19929721,17363.0,17362.0,0.35288298]
[1673287248976,3.0258898,17363.0,17362.0,0.35288298]
[1673287249217,2.0878138,17363.0,17362.0,0.35288298]
[1673287249943,2.52006109,17363.0,17362.0,0.35288298]
[1673287250433,2.26122121,17363.0,17362.0,0.35288298]
[1673287250681,2.5122601,17363.0,17362.0,0.35288298]
[1673287250954,3.0881971,17363.0,17362.0,0.35288298]
[1673287252202,2.26122121,17363.0,17362.0,0.35288298]
[1673287252462,2.62336021,17363.0,17362.0,0.35288298]
[1673287252679,2.26122121,17363.0,17362.0,0.35288298]
[1673287252938,2.51158542,17363.0,17362.0,0.35288298]
[1673287253185,3.44966142,17363.0,17362.0,0.35288298]
[1673287253682,3.10451883,17363.0,17362.0,0.35288298]
[1673287253926,3.40451883,17363.0,17362.0,0.35288298]
[1673287254943,3.10451883,17363.0,17362.0,0.35288298]
[1673287255442,3.40451883,17363.0,17362.0,0.35288298]
[1673287256240,2.97227154,17363.0,17362.0,0.35288298]
[1673287256487,3.10374604,17363.0,17362.0,0.35288298]
[1673287257202,3.44892046,17363.0,17362.0,0.35288298]
[1673287257444,3.10374604,17363.0,17362.0,0.35288298]
[1673287258176,3.40374604,17363.0,17362.0,0.35288298]
[1673287258669,2.97227154,17363.0,17362.0,0.35288298]
[1673287258911,3.1037373,17363.0,17362.0,0.35288298]
[1673287265135,2.67227154,17363.0,17362.0,0.35288298]
[1673287265348,2.97227154,17363.0,17362.0,0.35288298]
[1673287265878,2.67227154,17363.0,17362.0,0.35288298]
[1673287266126,2.97227154,17363.0,17362.0,0.35288298]
[1673287266385,3.58030883,17363.0,17362.0,0.35280437]
[1673287267932,4.09883385,17363.0,17362.0,0.35280437]
[1673287269684,3.28030883,17363.0,17362.0,0.35280437]
[1673287270423,3.58030883,17363.0,17362.0,0.35280437]
[1673287270925,4.09883385,17363.0,17362.0,0.35280437]
[1673287272669,4.38083227,17363.0,17362.0,0.21819351]
[1673287272912,4.54703227,17363.0,17362.0,0.21819351]
[1673287273147,5.53676538,17363.0,17362.0,0.21819351]
[1673287273648,5.53665427,17363.0,17362.0,0.21819351]
[1673287273903,4.78861363,17363.0,17362.0,0.21819351]
[1673287274403,4.78861363,17363.0,17362.0,0.21519351]
[1673287274404,5.2587936,17363.0,17362.0,0.21519351]
[1673287274652,5.2587936,17363.0,17362.0,0.22319351]
[1673287274653,4.84298548,17363.0,17362.0,0.22319351]
[1673287274896,5.25883881,17363.0,17362.0,0.21519351]
[1673287275150,5.36083881,17363.0,17362.0,0.22219351]
[1673287275912,5.42634278,17363.0,17362.0,0.22219351]
[1673287276166,4.84300214,17363.0,17362.0,0.22219351]
[1673287277394,4.47837864,17363.0,17362.0,0.22219351]
[1673287277882,4.94700258,17363.0,17362.0,0.22219351]
[1673287278144,4.84324955,17363.0,17362.0,0.22219351]
[1673287279604,4.37462561,17363.0,17362.0,0.22219351]
[1673287280105,4.47846544,17363.0,17362.0,0.22219351]
[1673287280886,4.37646544,17363.0,17362.0,0.21519351]
[1673287281143,4.47846544,17363.0,17362.0,0.22219351]
[1673287281904,4.37646544,17363.0,17362.0,0.21519351]
[1673287282164,4.37646544,17363.0,17362.0,0.22319351]
[1673287282165,4.47846544,17363.0,17362.0,0.22319351]
[1673287282414,4.37646544,17363.0,17362.0,0.21519351]
[1673287282660,4.37646544,17363.0,17362.0,0.22219351]
[1673287282661,4.47846544,17363.0,17362.0,0.22219351]
[1673287282875,4.37646544,17363.0,17362.0,0.21519351]
[1673287284381,4.37646544,17363.0,17362.0,0.22319351]
[1673287284382,4.47846544,17363.0,17362.0,0.22319351]
[1673287284632,4.21026544,17363.0,17362.0,0.21519351]
[1673287284875,4.31226544,17363.0,17362.0,0.22319351]
[1673287290676,1.72205853,17363.0,17362.0,0.29779297]
[1673287290922,1.12926962,17363.0,17362.0,0.22319351]
[1673287291185,1.12926962,17363.0,17362.0,0.91419714]
[1673287291437,0.70624355,17363.0,17362.0,1.24659714]
[1673287291687,0.70624355,17363.0,17362.0,1.60873614]
[1673287291938,0.36095646,17363.0,17362.0,1.60873614]
[1673287292187,0.43158795,17363.0,17362.0,2.00073614]
[1673287292440,0.43558795,17363.0,17362.0,2.04173614]
[1673287292699,0.17663149,17363.0,17362.0,2.00073614]
[1673287292955,0.43958795,17363.0,17362.0,2.04173614]
[1673287293957,0.43958795,17363.0,17362.0,1.67959714]
[1673287294207,0.43958795,17363.0,17362.0,2.04173614]
[1673287294475,0.43958795,17363.0,17362.0,2.61770614]
[1673287294476,0.18063149,17363.0,17362.0,2.61770614]
[1673287295224,0.008,17363.0,17362.0,2.61770614]
[1673287295714,0.18063149,17363.0,17362.0,2.50251263]
[1673287296209,0.008,17363.0,17362.0,2.50251263]
[1673287297971,0.008,17363.0,17362.0,2.14037363]
[1673287298451,0.04090956,17363.0,17362.0,2.50251263]
[1673287300231,0.01354105,17364.0,17363.0,0.4]
[1673287300491,0.25907146,17365.0,17363.0,1.5466568]
[1673287300743,0.25907146,17365.0,17364.0,0.528293]
[1673287300744,0.000115,17365.0,17364.0,0.528293]
[1673287300993,0.000115,17365.0,17364.0,0.1662]
[1673287301487,0.027115,17365.0,17364.0,0.1662]
[1673287301736,0.000115,17365.0,17364.0,0.1662]
[1673287301989,0.086115,17365.0,17364.0,0.1752]
[1673287302737,0.000115,17365.0,17364.0,0.1662]
[1673287302985,0.004115,17365.0,17364.0,0.2112]
[1673287306778,0.004115,17365.0,17364.0,1.363008]
[1673287307276,0.004115,17365.0,17364.0,1.663008]
[1673287308748,0.004115,17365.0,17364.0,1.087104]
[1673287309487,0.004115,17365.0,17364.0,1.663008]
[1673287309757,0.004115,17365.0,17364.0,1.087104]
[1673287312242,0.004115,17365.0,17364.0,1.663008]
[1673287313950,0.004115,17365.0,17364.0,1.087104]
[1673287314700,0.004115,17365.0,17364.0,0.5112]
[1673287316263,0.004115,17365.0,17364.0,1.663008]
[1673287317008,0.004115,17365.0,17364.0,1.829208]
[1673287319730,0.004115,17365.0,17364.0,1.253304]
[1673287320242,0.00496211,17365.0,17364.0,0.6774]
[1673287320490,0.004115,17365.0,17364.0,0.6774]
[1673287320987,0.004115,17365.0,17364.0,1.253304]
[1673287322216,0.004115,17365.0,17364.0,2.84692195]
[1673287323449,0.004115,17365.0,17364.0,3.42282595]
[1673287324452,0.00401081,17365.0,17364.0,3.01312195]
[1673287324943,0.00401081,17365.0,17364.0,3.26312195]
[1673287325447,0.00401081,17365.0,17364.0,4.13886662]
[1673287325755,0.00401081,17365.0,17364.0,4.1388667]
[1673287326281,0.01834082,17368.0,17364.0,3.48329175]
[1673287326532,0.01834082,17368.0,17367.0,0.4986]
[1673287326769,0.01834082,17368.0,17367.0,4.14489529]
[1673287327026,0.01834082,17368.0,17367.0,4.07879583]
[1673287327512,0.01834082,17368.0,17367.0,4.32879583]
[1673287327769,0.02134082,17368.0,17367.0,4.32879583]
[1673287328017,0.01834082,17368.0,17367.0,4.32879583]
[1673287328289,0.02134082,17368.0,17367.0,4.36413395]
[1673287328552,0.02134082,17368.0,17367.0,4.06413395]
[1673287328796,0.02003615,17368.0,17367.0,4.06413395]
[1673287329798,0.02003615,17368.0,17367.0,4.76698104]
[1673287330050,0.02003615,17368.0,17367.0,4.06413395]
[1673287331298,0.02003615,17368.0,17367.0,3.89793395]
[1673287332514,0.02003615,17368.0,17367.0,4.19793395]
[1673287334759,0.02003615,17368.0,17367.0,3.89793395]
[1673287335776,0.02003615,17368.0,17367.0,4.19793395]
[1673287336751,0.02003615,17368.0,17367.0,3.89793395]
[1673287338459,0.02003615,17368.0,17367.0,4.19793395]
[1673287339731,0.02003615,17368.0,17367.0,4.37595859]
[1673287340226,0.02003615,17368.0,17367.0,4.54783284]
[1673287341077,0.06435266,17369.0,17368.0,0.59413776]
[1673287341325,0.06435266,17369.0,17368.0,4.07099534]
[1673287341573,0.01628563,17369.0,17368.0,7.35295079]
[1673287341822,0.01628563,17369.0,17368.0,7.65452798]
[1673287342077,0.01628563,17369.0,17368.0,8.25452798]
[1673287342332,0.01959199,17370.0,17369.0,0.4]
[1673287342572,0.01959199,17370.0,17369.0,4.52096576]
[1673287342828,0.01959199,17370.0,17369.0,4.70453591]
[1673287343568,0.01959199,17370.0,17369.0,4.95453591]
[1673287343816,0.01959199,17370.0,17369.0,4.92314149]
[1673287343817,0.02259199,17370.0,17369.0,4.92314149]
[1673287344337,0.01959199,17370.0,17369.0,4.78314149]
[1673287344850,0.02259199,17370.0,17369.0,4.92114149]
[1673287345577,0.02259199,17370.0,17369.0,4.92080496]
[1673287345822,0.02259199,17370.0,17369.0,4.51870978]
[1673287346322,0.02259199,17370.0,17369.0,4.79444778]
[1673287346592,0.02259199,17370.0,17369.0,4.62824778]
[1673287346837,0.26026988,17370.0,17369.0,4.29654778]
[1673287347092,0.02259199,17370.0,17369.0,4.11297763]
[1673287347344,0.02259199,17370.0,17369.0,2.98303963]
[1673287347602,0.02259199,17370.0,17369.0,2.97453963]
[1673287348651,0.02259199,17370.0,17369.0,2.61251563]
[1673287348908,0.02259199,17370.0,17369.0,2.97465463]
[1673287349921,0.02259199,17370.0,17369.0,2.83665463]
[1673287350164,0.02359199,17370.0,17369.0,2.97165463]
[1673287350660,0.00417551,17370.0,17369.0,2.97165463]
[1673287351165,0.00350753,17371.0,17370.0,1.08142085]
[1673287351427,0.72592424,17373.0,17370.0,1.43484185]
[1673287351670,0.64478685,17374.0,17370.0,1.89792531]
[1673287351949,0.63063818,17374.0,17371.0,0.07459946]
[1673287352206,0.63063818,17374.0,17372.0,0.07459946]
[1673287352207,0.05504018,17374.0,17372.0,0.07459946]
[1673287352436,0.05504018,17374.0,17372.0,0.47459946]
[1673287352680,0.05504018,17374.0,17372.0,1.62586346]
[1673287352681,0.00536838,17374.0,17372.0,1.62586346]
[1673287352927,0.00536838,17374.0,17373.0,0.64284094]
[1673287353433,0.00530178,17374.0,17373.0,0.64284094]
[1673287353959,0.04230178,17374.0,17373.0,0.64284094]
[1673287354222,0.04230178,17374.0,17373.0,0.89284094]
[1673287354484,0.05230178,17374.0,17373.0,0.90084094]
[1673287354727,0.00530178,17374.0,17373.0,0.89284094]
[1673287354971,0.00630178,17374.0,17373.0,0.92384094]
[1673287356494,0.36844078,17374.0,17373.0,0.92384094]
[1673287357524,0.00630178,17374.0,17373.0,0.92384094]
[1673287359354,1.11618519,17374.0,17373.0,0.92384094]
[1673287359936,0.94401278,17374.0,17373.0,0.92384094]
[1673287360192,1.1170323,17374.0,17373.0,0.92384094]
[1673287360452,1.11618519,17374.0,17373.0,0.281]
[1673287361250,1.1170323,17374.0,17373.0,0.281]
[1673287362271,1.11618519,17374.0,17373.0,0.281]
[1673287362511,0.94401278,17374.0,17373.0,0.281]
[1673287362766,0.36844078,17374.0,17373.0,0.281]
[1673287363016,0.17847419,17374.0,17373.0,0.281]
[1673287364797,0.43743065,17374.0,17373.0,0.281]
[1673287365302,0.17847419,17374.0,17373.0,0.281]
[1673287365811,0.43743065,17374.0,17373.0,0.281]
[1673287367090,0.60363065,17374.0,17373.0,0.281]
[1673287367348,0.96661676,17374.0,17373.0,0.281]
[1673287367603,1.13888433,17374.0,17373.0,0.281]
[1673287369621,3.47220188,17374.0,17373.0,0.281]
[1673287370120,2.82691479,17374.0,17373.0,0.281]
[1673287370367,3.21316419,17374.0,17373.0,0.281]
[1673287370616,3.83948638,17374.0,17373.0,0.281]
[1673287371351,4.41505838,17374.0,17373.0,0.281]
[1673287371850,4.41505838,17374.0,17373.0,0.381]
[1673287372821,4.41505838,17374.0,17373.0,0.21272573]
[1673287373337,4.41505838,17374.0,17373.0,0.131]
[1673287373839,5.04588798,17374.0,17373.0,0.131]
[1673287374093,6.04168798,17374.0,17373.0,0.131]
[1673287374351,4.95318833,17374.0,17373.0,0.131]
[1673287374598,4.57865134,17374.0,17373.0,0.131]
[1673287375337,4.57765134,17374.0,17373.0,0.1]
[1673287378098,4.34618992,17374.0,17373.0,0.111]
[1673287378382,3.82882924,17374.0,17373.0,0.111]
[1673287378617,3.82967635,17374.0,17373.0,0.111]
[1673287378862,3.82967635,17374.0,17373.0,0.011]
[1673287379105,3.52967635,17374.0,17373.0,0.011]
[1673287379603,4.29193685,17374.0,17373.0,0.011]
[1673287380844,4.80929753,17374.0,17373.0,0.011]
[1673287383541,4.75716645,17374.0,17373.0,0.011]
[1673287383787,5.29255579,17374.0,17373.0,0.011]
[1673287384035,0.53009998,17373.0,17369.0,0.00015]
[1673287384277,0.92816787,17370.0,17369.0,0.00015]
[1673287384519,3.65515003,17370.0,17369.0,0.00015]
[1673287384768,3.76205434,17370.0,17369.0,0.00015]
[1673287385075,3.46205434,17370.0,17369.0,0.02615]
[1673287385312,4.15478273,17370.0,17368.0,0.00838776]
[1673287385569,1.35770282,17369.0,17368.0,0.00838776]
[1673287385818,1.93344082,17369.0,17368.0,0.00838776]
[1673287386387,2.50917882,17369.0,17368.0,0.00838776]
[1673287386555,2.50918081,17369.0,17368.0,0.00838776]
[1673287386806,2.84115536,17369.0,17368.0,0.00838776]
[1673287387298,2.62569707,17369.0,17368.0,0.01038776]
[1673287387817,2.62654418,17369.0,17368.0,0.01038776]
[1673287388050,2.88500247,17369.0,17368.0,0.01038776]
[1673287388598,2.48500247,17369.0,17368.0,0.11038776]
[1673287388863,2.05423666,17369.0,17368.0,0.11038776]
[1673287389092,0.98172411,17369.0,17368.0,0.11038776]
[1673287389339,0.405139,17369.0,17368.0,0.71941396]
[1673287389605,0.043,17369.0,17368.0,1.05091396]
[1673287389870,0.043,17369.0,17368.0,1.9142245]
[1673287390621,0.17230752,17372.0,17368.0,1.9122245]
[1673287390873,0.17230752,17372.0,17368.0,2.01498496]
[1673287390874,0.043,17369.0,17368.0,2.01498496]
[1673287391125,0.043,17369.0,17368.0,2.1050855]
[1673287391434,0.043,17369.0,17368.0,2.4672245]
[1673287391625,0.17230752,17371.0,17368.0,2.4652245]
[1673287391882,0.17230752,17371.0,17370.0,0.5662]
[1673287392127,0.37424668,17371.0,17370.0,0.5662]
[1673287392393,1.23180937,17372.0,17370.0,0.5662]
[1673287392655,1.63180937,17372.0,17370.0,0.5662]
[1673287392893,1.80744937,17372.0,17370.0,0.5662]
[1673287393406,1.80744937,17372.0,17370.0,1.141904]
[1673287393407,0.17230752,17372.0,17370.0,1.141904]
[1673287393662,0.004,17371.0,17370.0,1.141904]
[1673287393955,1.22687228,17373.0,17370.0,1.19981103]
[1673287393956,1.7991798,17373.0,17370.0,1.19981103]
[1673287394164,0.043,17372.0,17370.0,1.27641049]
[1673287394414,0.8789606,17373.0,17370.0,1.19981103]
[1673287394674,0.001,17372.0,17370.0,1.87611549]
[1673287394926,0.90378621,17373.0,17370.0,1.77551603]
[1673287395176,1.1632445,17373.0,17370.0,1.80151603]
[1673287395423,0.50478621,17373.0,17370.0,1.80151603]
[1673287395677,0.7632445,17373.0,17370.0,1.743609]
[1673287395925,0.362139,17372.0,17370.0,1.743609]
[1673287396174,1.1632445,17373.0,17370.0,1.743609]
[1673287396417,1.1632445,17373.0,17370.0,1.81820846]
[1673287396418,0.7632445,17373.0,17370.0,1.81820846]
[1673287396666,0.7632445,17373.0,17370.0,1.743609]
[1673287396914,0.7622445,17373.0,17370.0,1.717609]
[1673287397179,0.001,17372.0,17370.0,1.743609]
[1673287397441,0.50378621,17373.0,17370.0,1.717609]
[1673287397691,0.50478621,17373.0,17370.0,1.743609]
[1673287397941,0.50378621,17373.0,17370.0,1.717609]
[1673287398194,0.22050231,17373.0,17372.0,0.4]
[1673287398700,0.17230752,17373.0,17371.0,1.08452826]
[1673287398974,0.362139,17372.0,17371.0,0.50887026]
[1673287399193,0.83076581,17373.0,17371.0,0.50887026]
[1673287399194,1.40637481,17373.0,17371.0,0.50887026]
[1673287399480,0.362139,17372.0,17371.0,0.50887026]
[1673287400231,0.362139,17372.0,17371.0,0.53487026]
[1673287400232,0.001,17372.0,17371.0,0.53487026]
[1673287400703,0.001,17372.0,17371.0,1.11054226]
[1673287401213,0.001,17372.0,17371.0,1.51054226]
[1673287403802,0.001,17372.0,17371.0,2.08621426]
[1673287404557,0.001,17372.0,17371.0,3.21762472]
[1673287404809,0.001,17372.0,17371.0,3.76292526]
[1673287405333,0.001,17372.0,17371.0,4.01292526]
[1673287406610,0.001,17372.0,17371.0,4.71839178]
[1673287406861,0.001,17372.0,17371.0,4.01292526]
[1673287407113,0.001,17372.0,17371.0,4.56812526]
[1673287407360,0.001,17372.0,17371.0,4.67762526]
[1673287407610,0.001,17372.0,17371.0,3.52628126]
[1673287407611,0.239525,17372.0,17371.0,3.52628126]
[1673287407864,0.001,17372.0,17371.0,1.86847026]
[1673287408372,0.001,17372.0,17371.0,1.86837718]
[1673287409123,0.001,17372.0,17371.0,2.80618818]
[1673287410175,0.001,17372.0,17371.0,3.38186018]
[1673287410468,0.001,17372.0,17371.0,3.95753218]
[1673287410704,0.001,17372.0,17371.0,4.12263218]
[1673287412735,0.001,17372.0,17371.0,3.95693218]
[1673287412994,0.001,17372.0,17371.0,3.90233218]
[1673287413242,0.001,17372.0,17371.0,3.79183218]
[1673287413493,0.001,17372.0,17371.0,3.42969318]
[1673287413742,0.001,17372.0,17371.0,3.79183218]
[1673287414754,0.001,17372.0,17371.0,3.21616018]
[1673287415001,0.001,17372.0,17371.0,2.85402118]
[1673287415260,0.00184711,17372.0,17371.0,2.84552118]
[1673287415512,0.001,17372.0,17371.0,3.20766018]
[1673287416010,0.001,17372.0,17371.0,2.63198818]
[1673287416514,0.001,17372.0,17371.0,2.26984918]
[1673287418318,0.68983205,17374.0,17372.0,0.4]
[1673287418319,0.68697201,17374.0,17372.0,0.4]
[1673287419084,0.90321966,17374.0,17372.0,0.4]
[1673287419592,0.94706677,17374.0,17372.0,0.402]
[1673287419841,0.362139,17373.0,17372.0,0.652]
[1673287420368,1.92264377,17374.0,17372.0,0.652]
[1673287420619,0.362139,17373.0,17372.0,0.25]
[1673287420834,0.66972031,17373.0,17372.0,0.25]
[1673287421393,1.99248213,17373.0,17372.0,0.25]
[1673287421642,3.26954542,17373.0,17372.0,0.252]
[1673287421886,3.7418201,17373.0,17372.0,0.252]
[1673287422380,4.3174251,17373.0,17372.0,0.252]
[1673287425462,1.58302879,17373.0,17372.0,0.252]
[1673287425716,0.043,17373.0,17372.0,0.252]
[1673287426205,0.043,17373.0,17372.0,0.352]
[1673287426453,0.043,17373.0,17372.0,1.40309499]
[1673287427224,0.043,17373.0,17372.0,1.97873299]
[1673287427722,0.043,17373.0,17372.0,2.34087199]
[1673287428212,0.043,17373.0,17372.0,1.97873299]
[1673287428960,0.04384711,17373.0,17372.0,1.97873299]
[1673287429208,0.21518153,17373.0,17372.0,1.97873299]
[1673287429702,0.21518153,17373.0,17372.0,1.40309499]
[1673287429953,0.21518153,17373.0,17372.0,0.99809499]
[1673287431933,0.21518153,17373.0,17372.0,1.57373299]
[1673287432194,0.043,17373.0,17372.0,2.54937099]
[1673287434438,0.043,17373.0,17372.0,3.13250999]
[1673287435955,0.043,17373.0,17372.0,2.77037099]
[1673287436209,0.043,17373.0,17372.0,2.54937099]
[1673287437501,0.23779097,17373.0,17372.0,0.99809499]
[1673287438261,0.23694386,17373.0,17372.0,0.99809499]
[1673287439499,0.06476233,17373.0,17372.0,0.99809499]
[1673287440246,0.06476233,17373.0,17372.0,1.57373299]
[1673287440495,0.06560944,17373.0,17372.0,0.99809499]
[1673287440749,0.23779097,17373.0,17372.0,0.99809499]
[1673287441249,0.23694386,17373.0,17372.0,0.99809499]
[1673287442256,0.06476233,17373.0,17372.0,1.57373299]
[1673287442750,0.23694386,17373.0,17372.0,1.57373299]
[1673287443737,0.23779097,17373.0,17372.0,1.57373299]
[1673287443980,0.21518153,17373.0,17372.0,1.57373299]
[1673287446237,0.21602864,17373.0,17372.0,1.57373299]
[1673287446776,0.21518153,17373.0,17372.0,1.57373299]
[1673287447280,0.21602864,17373.0,17372.0,1.57373299]
[1673287447538,0.21602864,17373.0,17372.0,0.99809499]
[1673287447784,0.35836517,17373.0,17372.0,0.99809499]
[1673287448029,0.61682346,17373.0,17372.0,0.99809499]
[1673287448281,0.61682346,17373.0,17372.0,0.347]
[1673287448282,1.92088188,17373.0,17372.0,0.347]
[1673287448527,2.49648688,17373.0,17372.0,0.347]
[1673287449269,2.79565832,17373.0,17372.0,0.347]
[1673287451131,3.02668112,17373.0,17372.0,0.347]
[1673287453501,3.60228612,17373.0,17372.0,0.347]
[1673287453747,3.47131825,17373.0,17372.0,0.347]
[1673287454272,3.47131825,17373.0,17372.0,0.34692605]
[1673287454807,3.17131825,17373.0,17372.0,0.34692605]
[1673287455300,2.59571325,17373.0,17372.0,0.34692605]
[1673287455524,0.70431044,17373.0,17372.0,0.42152551]
[1673287455773,0.043,17373.0,17372.0,0.34692605]
[1673287456033,0.443,17373.0,17372.0,0.34692605]
[1673287456282,1.21883977,17373.0,17372.0,0.34692605]
[1673287456528,1.4395925,17373.0,17372.0,0.34692605]
[1673287456791,1.00856876,17373.0,17372.0,0.34692605]
[1673287457049,0.47401493,17373.0,17372.0,0.34692605]
[1673287457543,0.2154012,17373.0,17372.0,0.34692605]
[1673287458282,0.21624831,17373.0,17372.0,0.34692605]
[1673287458525,0.2154012,17373.0,17372.0,0.34692605]
[1673287459490,0.2154012,17373.0,17372.0,0.92256405]
[1673287460002,0.47401493,17373.0,17372.0,0.92256405]
[1673287460252,0.69392653,17373.0,17372.0,0.34692605]
[1673287460496,1.03874384,17373.0,17372.0,0.34692605]
[1673287460744,0.86718847,17373.0,17372.0,0.34692605]
[1673287461263,1.66035121,17373.0,17372.0,0.34692605]
[1673287461504,1.22932747,17373.0,17372.0,0.34692605]
[1673287461749,1.22932284,17373.0,17372.0,0.34692605]
[1673287462537,1.22847573,17373.0,17372.0,0.34692605]
[1673287462788,1.65949947,17373.0,17372.0,0.34692605]
[1673287463275,1.40089037,17373.0,17372.0,0.34692605]
[1673287463520,1.03007841,17373.0,17372.0,0.34692605]
[1673287464538,1.46194926,17373.0,17372.0,0.34506505]
[1673287464809,1.43094473,17373.0,17372.0,0.34506505]
[1673287465056,1.88568098,17373.0,17372.0,0.34506505]
[1673287465569,2.22673271,17373.0,17372.0,0.34506505]
[1673287465816,2.22673271,17373.0,17372.0,0.41506505]
[1673287466312,1.94437007,17373.0,17372.0,0.41506505]
[1673287466799,2.22671893,17373.0,17372.0,0.41506505]
[1673287467046,1.54437007,17373.0,17372.0,0.41506505]
[1673287467295,1.20247123,17373.0,17372.0,0.41506505]
[1673287467562,1.46112369,17373.0,17372.0,0.41506505]
[1673287468066,1.33009995,17373.0,17372.0,0.41506505]
[1673287468312,1.50247123,17373.0,17372.0,0.41506505]
[1673287468576,1.76112473,17373.0,17372.0,0.41506505]
[1673287468808,1.7840252,17373.0,17372.0,0.41506505]
[1673287469061,2.11491135,17373.0,17372.0,0.41506505]
[1673287469314,1.81491135,17373.0,17372.0,0.41506505]
[1673287469561,1.03011092,17373.0,17372.0,0.41506505]
[1673287470563,1.884031,17373.0,17372.0,0.41506505]
[1673287470819,1.88487811,17373.0,17372.0,0.41506505]
[1673287471326,1.48487811,17373.0,17372.0,0.41506505]
[1673287472126,1.20331834,17373.0,17372.0,0.41506505]
[1673287472335,1.03010603,17373.0,17372.0,0.41506505]
[1673287472620,1.03095314,17373.0,17372.0,0.41506505]
[1673287472862,1.03010603,17373.0,17372.0,0.41506505]
[1673287473116,1.78285062,17373.0,17372.0,0.41506505]
[1673287473876,1.78369773,17373.0,17372.0,0.41506505]
[1673287475359,1.4388817,17373.0,17372.0,0.41506505]
[1673287475605,1.52594818,17373.0,17372.0,0.41506505]
[1673287476092,3.07715818,17373.0,17372.0,0.41506505]
[1673287478341,3.59431963,17373.0,17372.0,0.41506505]
[1673287478964,3.07715818,17373.0,17372.0,0.41506505]
[1673287480739,3.07631107,17373.0,17372.0,0.41506505]
[1673287480992,3.45272749,17373.0,17372.0,0.41506505]
[1673287481262,2.57852222,17373.0,17372.0,0.41506505]
[1673287481495,2.00291722,17373.0,17372.0,0.41506505]
[1673287482714,1.72113444,17373.0,17372.0,0.41506505]
[1673287482956,1.97993823,17373.0,17372.0,0.41506505]
[1673287483200,1.72113444,17373.0,17372.0,0.41506505]
[1673287483465,2.34996294,17373.0,17372.0,0.41506505]
[1673287483712,2.349965,17373.0,17372.0,0.41506505]
[1673287484195,2.34996284,17373.0,17372.0,0.41506505]
[1673287484452,2.32792819,17373.0,17372.0,0.41506505]
[1673287484704,2.06910927,17373.0,17372.0,0.41506505]
[1673287485217,0.66838847,17373.0,17372.0,0.41506505]
[1673287486201,0.49587606,17373.0,17372.0,0.41506505]
[1673287486452,0.49587606,17373.0,17372.0,0.99070305]
[1673287487448,0.49587606,17373.0,17372.0,0.41506505]
[1673287487449,0.66923558,17373.0,17372.0,0.41506505]
[1673287488193,1.03052747,17373.0,17372.0,0.41506505]
[1673287488445,1.20304422,17373.0,17372.0,0.41506505]
[1673287489198,1.09975517,17373.0,17372.0,0.41506505]
[1673287489458,0.84090522,17373.0,17372.0,0.41506505]
[1673287489698,1.09975567,17373.0,17372.0,0.41506505]
[1673287490197,0.66841614,17373.0,17372.0,0.41506505]
[1673287490445,0.84090522,17373.0,17372.0,0.41506505]
[1673287490936,1.12173599,17373.0,17372.0,0.41506505]
[1673287491191,1.48387499,17373.0,17372.0,0.41506505]
[1673287491444,1.85488895,17373.0,17372.0,0.41506505]
[1673287491694,1.50981572,17373.0,17372.0,0.41497663]
[1673287491937,1.91066283,17373.0,17372.0,0.41497663]
[1673287493013,1.51066283,17373.0,17372.0,0.41497663]
[1673287493266,1.13964887,17373.0,17372.0,0.41497663]
[1673287493513,0.77750987,17373.0,17372.0,0.41497663]
[1673287493759,1.17750987,17373.0,17372.0,0.41497663]
[1673287494272,1.53964887,17373.0,17372.0,0.41497663]
[1673287494510,1.96795756,17373.0,17372.0,0.41497663]
[1673287494786,1.53661803,17373.0,17372.0,0.41497663]
[1673287495511,1.96809099,17373.0,17372.0,0.41497663]
[1673287495754,2.13344783,17373.0,17372.0,0.41497663]
[1673287496017,3.00905283,17373.0,17372.0,0.41497663]
[1673287496299,3.22621428,17373.0,17372.0,0.41497663]
[1673287496578,4.10181928,17373.0,17372.0,0.41497663]
[1673287498532,4.01167047,17373.0,17372.0,0.23376716]
[1673287498780,3.99599795,17373.0,17372.0,0.23376716]
[1673287499024,3.99599795,17373.0,17372.0,0.172]
[1673287499025,4.57160295,17373.0,17372.0,0.172]
[1673287499765,5.03631979,17373.0,17372.0,0.172]
[1673287500014,5.36741979,17373.0,17372.0,0.172]
[1673287500523,4.73690295,17373.0,17372.0,0.172]
[1673287501001,5.25435419,17373.0,17372.0,0.172]